[Event "Late-Titled-Tuesday-Blitz-June-04-2024"]
[Site "Chess.com"]
[Date "2024.06.04"]
[Round "5"]
[White "snowlord"]
[Black "IlyaGrigorjev"]
[Result "0-1"]
[WhiteElo "2925"]
[BlackElo "2854"]
[TimeControl "180+1"]
[EndTime "14:56:06 PDT"]
[Termination "IlyaGrigorjev won by resignation"]

1. Nc3 {[%clk 0:03:00.6]} 1... Nf6 {[%clk 0:02:57.4]} 2. e4 {[%clk 0:03:00.5]}
2... e5 {[%clk 0:02:57.2]} 3. Bc4 {[%clk 0:02:58.9]} 3... Nc6 {[%clk 0:02:56.4]}
4. d3 {[%clk 0:02:58.7]} 4... Bc5 {[%clk 0:02:56.2]} 5. f4 {[%clk 0:02:55.3]}
5... O-O {[%clk 0:02:56.2]} 6. Nf3 {[%clk 0:02:55.6]} 6... Ng4 {[%clk
0:02:56.2]} 7. Qe2 {[%clk 0:02:42.1]} 7... Bf2+ {[%clk 0:02:56.2]} 8. Kf1 {[%clk
0:02:34.5]} 8... Nd4 {[%clk 0:02:56.2]} 9. Nxd4 {[%clk 0:02:34.9]} 9... Bxd4
{[%clk 0:02:56.5]} 10. f5 {[%clk 0:02:28.1]} 10... Nf6 {[%clk 0:02:37.6]} 11.
Bg5 {[%clk 0:02:25.6]} 11... c6 {[%clk 0:02:37.9]} 12. Bb3 {[%clk 0:02:21.6]}
12... d5 {[%clk 0:02:26.6]} 13. exd5 {[%clk 0:02:13.1]} 13... Bxf5 {[%clk
0:02:24.9]} 14. Qf3 {[%clk 0:02:12.8]} 14... Qd7 {[%clk 0:02:09.5]} 15. Bxf6
{[%clk 0:02:10.1]} 15... gxf6 {[%clk 0:02:10.4]} 16. Ne2 {[%clk 0:01:59]} 16...
Bb6 {[%clk 0:02:02.1]} 17. Ng3 {[%clk 0:01:55.7]} 17... Bg6 {[%clk 0:01:46.6]}
18. h4 {[%clk 0:01:54.1]} 18... cxd5 {[%clk 0:01:24.3]} 19. h5 {[%clk
0:01:53.2]} 19... e4 {[%clk 0:01:24.8]} 20. Qxf6 {[%clk 0:01:33.2]} 20... Qe6
{[%clk 0:00:56.3]} 21. Qg5 {[%clk 0:01:08.9]} 21... exd3 {[%clk 0:00:39.6]} 22.
Bxd5 {[%clk 0:01:06.9]} 22... Be3 {[%clk 0:00:14.6]} 23. Bxe6 {[%clk 0:00:42.5]}
23... fxe6+ {[%clk 0:00:13.8]} 24. Ke1 {[%clk 0:00:33.9]} 24... Bxg5 {[%clk
0:00:12.8]} 25. hxg6 {[%clk 0:00:34.5]} 25... dxc2 {[%clk 0:00:13.3]} 26. Ke2
{[%clk 0:00:27.9]} 26... hxg6 {[%clk 0:00:11.4]} 27. Ne4 {[%clk 0:00:28.1]}
27... c1=Q {[%clk 0:00:11.3]} 28. Raxc1 {[%clk 0:00:27.6]} 28... Bxc1 {[%clk
0:00:12.2]} 29. Rxc1 {[%clk 0:00:28]} 29... Rac8 {[%clk 0:00:13.1]} 30. Rd1
{[%clk 0:00:13]} 30... Rfd8 {[%clk 0:00:13.5]} 31. Rh1 {[%clk 0:00:09.7]} 31...
Rc2+ {[%clk 0:00:13.5]} 32. Ke3 {[%clk 0:00:10.4]} 32... Kg7 {[%clk 0:00:11.1]}
33. Ng5 {[%clk 0:00:10.2]} 33... Rd6 {[%clk 0:00:05.6]} 34. Rh7+ {[%clk
0:00:09.8]} 34... Kg8 {[%clk 0:00:06.2]} 35. Rxb7 {[%clk 0:00:09.2]} 35... Rxg2
{[%clk 0:00:05.3]} 36. Ne4 {[%clk 0:00:06.8]} 36... Rc6 {[%clk 0:00:03.7]} 37.
a4 {[%clk 0:00:04.4]} 37... a6 {[%clk 0:00:04.1]} 38. Nf6+ {[%clk 0:00:04.7]}
38... Kf8 {[%clk 0:00:04.5]} 39. b4 {[%clk 0:00:05.2]} 39... g5 {[%clk
0:00:04.5]} 40. b5 {[%clk 0:00:04.1]} 40... axb5 {[%clk 0:00:05.4]} 41. axb5
{[%clk 0:00:05]} 41... Rc1 {[%clk 0:00:05.9]} 42. b6 {[%clk 0:00:05.2]} 42...
Rb1 {[%clk 0:00:05.3]} 43. Ra7 {[%clk 0:00:04.4]} 43... Rgb2 {[%clk 0:00:04.5]}
44. Nd7+ {[%clk 0:00:03.3]} 44... Kf7 {[%clk 0:00:04.7]} 45. Ne5+ {[%clk
0:00:03.3]} 45... Kf6 {[%clk 0:00:05.2]} 46. Nc4 {[%clk 0:00:04.1]} 46... Rb4
{[%clk 0:00:04.9]} 47. Kd3 {[%clk 0:00:04.1]} 47... R1b3+ {[%clk 0:00:04.8]} 48.
Kc2 {[%clk 0:00:04.8]} 48... Rh3 {[%clk 0:00:04.1]} 49. Rc7 {[%clk 0:00:02.9]}
49... Rh4 {[%clk 0:00:03.5]} 50. Kc3 {[%clk 0:00:02.6]} 50... Rhxc4+ {[%clk
0:00:04.1]} 51. Rxc4 {[%clk 0:00:02.4]} 51... Rxb6 {[%clk 0:00:04.9]} 52. Rc8
{[%clk 0:00:03.2]} 52... Kf5 {[%clk 0:00:04.3]} 53. Kd4 {[%clk 0:00:03.3]} 53...
Rb3 {[%clk 0:00:03.7]} 54. Rf8+ {[%clk 0:00:02.7]} 54... Kg4 {[%clk 0:00:04.3]}
55. Ke5 {[%clk 0:00:03.3]} 55... Re3+ {[%clk 0:00:04.4]} 56. Kd4 {[%clk
0:00:03.9]} 56... Re1 {[%clk 0:00:04.9]} 57. Kd3 {[%clk 0:00:02.3]} 57... Kg3
{[%clk 0:00:05]} 58. Kd2 {[%clk 0:00:01.6]} 58... Re5 {[%clk 0:00:05.7]} 59. Kd3
{[%clk 0:00:02.3]} 59... g4 {[%clk 0:00:06.3]} 60. Kd4 {[%clk 0:00:02.3]} 60...
Re1 {[%clk 0:00:06.5]} 61. Kd3 {[%clk 0:00:03]} 61... Kg2 {[%clk 0:00:06.8]} 0-1

[Event "Late-Titled-Tuesday-Blitz-June-04-2024"]
[Site "Chess.com"]
[Date "2024.06.04"]
[Round "5"]
[White "arctic_t00"]
[Black "Heydarli77"]
[Result "1-0"]
[WhiteElo "2631"]
[BlackElo "2457"]
[TimeControl "180+1"]
[EndTime "14:56:08 PDT"]
[Termination "arctic_t00 won by resignation"]

1. d4 {[%clk 0:03:00.9]} 1... d5 {[%clk 0:02:58.8]} 2. Nf3 {[%clk 0:03:01.4]}
2... Nf6 {[%clk 0:02:57.5]} 3. Bg5 {[%clk 0:03:01.6]} 3... e6 {[%clk 0:02:55.5]}
4. Nbd2 {[%clk 0:02:59.8]} 4... Be7 {[%clk 0:02:53.1]} 5. e3 {[%clk 0:02:59.2]}
5... Nbd7 {[%clk 0:02:52.4]} 6. Bd3 {[%clk 0:02:58.4]} 6... c6 {[%clk
0:02:49.8]} 7. h4 {[%clk 0:02:53]} 7... Qc7 {[%clk 0:02:48.9]} 8. Bf4 {[%clk
0:02:50.7]} 8... Bd6 {[%clk 0:02:48.1]} 9. Bxd6 {[%clk 0:02:47.1]} 9... Qxd6
{[%clk 0:02:48.8]} 10. c4 {[%clk 0:02:46.6]} 10... c5 {[%clk 0:02:45.4]} 11.
cxd5 {[%clk 0:02:41.3]} 11... Nxd5 {[%clk 0:02:42.4]} 12. Ne4 {[%clk 0:02:28.5]}
12... Qe7 {[%clk 0:02:40.9]} 13. dxc5 {[%clk 0:02:19.7]} 13... Nxc5 {[%clk
0:02:34.6]} 14. Bb5+ {[%clk 0:02:19]} 14... Bd7 {[%clk 0:02:31.7]} 15. Bxd7+
{[%clk 0:02:15.4]} 15... Nxd7 {[%clk 0:02:32.3]} 16. O-O {[%clk 0:02:12.6]}
16... O-O {[%clk 0:02:31]} 17. Rc1 {[%clk 0:02:08.7]} 17... Rac8 {[%clk
0:02:29.3]} 18. Qb3 {[%clk 0:02:05.8]} 18... Qb4 {[%clk 0:02:22.3]} 19. Qxb4
{[%clk 0:01:59.4]} 19... Nxb4 {[%clk 0:02:22]} 20. Nd6 {[%clk 0:02:00.3]} 20...
Rxc1 {[%clk 0:02:16.6]} 21. Rxc1 {[%clk 0:02:01.2]} 21... Nxa2 {[%clk
0:02:15.7]} 22. Rc7 {[%clk 0:01:52.6]} 22... Nf6 {[%clk 0:02:04.7]} 23. Ne5
{[%clk 0:01:44.5]} 23... Nb4 {[%clk 0:02:01.3]} 24. Rxb7 {[%clk 0:01:41.9]}
24... a5 {[%clk 0:01:56.3]} 25. Ndxf7 {[%clk 0:01:30.1]} 25... Rc8 {[%clk
0:01:52.5]} 26. Nd6 {[%clk 0:01:15.8]} 26... Rd8 {[%clk 0:01:50.7]} 27. Nec4
{[%clk 0:01:12.5]} 27... Ng4 {[%clk 0:01:46.6]} 28. Rb5 {[%clk 0:00:56.9]} 28...
Nc6 {[%clk 0:01:45]} 29. Rc5 {[%clk 0:00:54.8]} 29... Ne7 {[%clk 0:01:38.4]} 30.
Rxa5 {[%clk 0:00:52.1]} 30... Nf5 {[%clk 0:01:38.4]} 31. Ra6 {[%clk 0:00:52.2]}
31... Rb8 {[%clk 0:01:31.7]} 32. Nxf5 {[%clk 0:00:45.9]} 32... exf5 {[%clk
0:01:31.1]} 33. f3 {[%clk 0:00:46.5]} 33... Nf6 {[%clk 0:01:30.1]} 34. Rc6
{[%clk 0:00:42.2]} 34... Nd5 {[%clk 0:01:27.1]} 35. Kf2 {[%clk 0:00:42.3]} 35...
Nb4 {[%clk 0:01:25.5]} 36. Rc7 {[%clk 0:00:39.1]} 36... Nd3+ {[%clk 0:01:23.7]}
37. Kg3 {[%clk 0:00:39.3]} 37... Nxb2 {[%clk 0:01:22.8]} 38. Nd6 {[%clk
0:00:36]} 38... g6 {[%clk 0:01:22.2]} 39. h5 {[%clk 0:00:35.8]} 39... gxh5
{[%clk 0:01:21.1]} 40. Nxf5 {[%clk 0:00:35.7]} 40... Nd3 {[%clk 0:01:19.7]} 41.
e4 {[%clk 0:00:35.4]} 41... Rb6 {[%clk 0:01:18]} 42. Kh4 {[%clk 0:00:31.4]}
42... Nf4 {[%clk 0:01:16.5]} 43. g3 {[%clk 0:00:31.6]} 43... Ne6 {[%clk
0:01:15.5]} 44. Rc8+ {[%clk 0:00:31.3]} 44... Kf7 {[%clk 0:01:14.6]} 45. Kxh5
{[%clk 0:00:31.1]} 45... Rb1 {[%clk 0:01:14.7]} 46. Kg4 {[%clk 0:00:30.3]} 46...
Rh1 {[%clk 0:01:14]} 47. f4 {[%clk 0:00:29.8]} 47... h5+ {[%clk 0:01:12.1]} 48.
Kf3 {[%clk 0:00:29.6]} 48... Rf1+ {[%clk 0:01:12.7]} 49. Ke3 {[%clk 0:00:28.8]}
49... Re1+ {[%clk 0:01:12]} 50. Kf3 {[%clk 0:00:28.9]} 50... Rf1+ {[%clk
0:01:11.8]} 51. Ke2 {[%clk 0:00:29.7]} 51... Ra1 {[%clk 0:01:11]} 52. Rh8 {[%clk
0:00:27.4]} 52... Ra2+ {[%clk 0:01:08.7]} 53. Kf3 {[%clk 0:00:27.8]} 53... Ra3+
{[%clk 0:01:08.8]} 54. Kg2 {[%clk 0:00:28.5]} 54... Kg6 {[%clk 0:01:08.2]} 55.
Rh6+ {[%clk 0:00:27.5]} 55... Kf7 {[%clk 0:01:08.2]} 56. Rxh5 {[%clk 0:00:27.4]}
56... Ra2+ {[%clk 0:01:06.6]} 57. Kh3 {[%clk 0:00:27.3]} 57... Ra3 {[%clk
0:01:07.3]} 58. Kg4 {[%clk 0:00:22.1]} 58... Ra4 {[%clk 0:01:05.5]} 59. Rh7+
{[%clk 0:00:21.9]} 59... Kg8 {[%clk 0:01:05.1]} 60. Re7 {[%clk 0:00:21.4]} 60...
Rxe4 {[%clk 0:01:02.5]} 61. Nd6 {[%clk 0:00:10.4]} 61... Re2 {[%clk 0:01:02.3]}
62. f5 {[%clk 0:00:09]} 62... Nd4 {[%clk 0:00:57.4]} 63. Rxe2 {[%clk 0:00:09.5]}
63... Nxe2 {[%clk 0:00:58]} 64. Ne4 {[%clk 0:00:08.2]} 64... Kf7 {[%clk
0:00:57.3]} 65. Kg5 {[%clk 0:00:08.2]} 65... Nd4 {[%clk 0:00:57.3]} 66. g4
{[%clk 0:00:08]} 66... Nf3+ {[%clk 0:00:57.5]} 67. Kf4 {[%clk 0:00:08.5]} 67...
Nd4 {[%clk 0:00:57.5]} 68. Ng5+ {[%clk 0:00:09.1]} 68... Kf6 {[%clk 0:00:57.2]}
69. Ne4+ {[%clk 0:00:09.4]} 69... Kf7 {[%clk 0:00:56.7]} 70. g5 {[%clk
0:00:10.1]} 70... Ne2+ {[%clk 0:00:55.7]} 71. Ke5 {[%clk 0:00:10.4]} 71... Ng1
{[%clk 0:00:55.5]} 72. g6+ {[%clk 0:00:10.8]} 72... Kg7 {[%clk 0:00:55.8]} 73.
Ng5 {[%clk 0:00:10.5]} 73... Kh6 {[%clk 0:00:52.1]} 74. Kf6 {[%clk 0:00:08.5]}
74... Ne2 {[%clk 0:00:51.7]} 75. g7 {[%clk 0:00:08.3]} 75... Nf4 {[%clk
0:00:50.8]} 76. g8=Q {[%clk 0:00:07.8]} 76... Nh5+ {[%clk 0:00:50.2]} 77. Ke5
{[%clk 0:00:08.2]} 77... Ng7 {[%clk 0:00:49.8]} 78. Qh7+ {[%clk 0:00:06.7]}
78... Kxg5 {[%clk 0:00:49]} 79. Qxg7+ {[%clk 0:00:07.4]} 79... Kh4 {[%clk
0:00:49.2]} 80. f6 {[%clk 0:00:07.8]} 1-0

[Event "Late-Titled-Tuesday-Blitz-June-04-2024"]
[Site "Chess.com"]
[Date "2024.06.04"]
[Round "5"]
[White "Chessdude1987"]
[Black "osielchesslover2011"]
[Result "1-0"]
[WhiteElo "2400"]
[BlackElo "2226"]
[TimeControl "180+1"]
[EndTime "14:56:09 PDT"]
[Termination "Chessdude1987 won by resignation"]

1. e4 {[%clk 0:03:00.9]} 1... e5 {[%clk 0:02:59.3]} 2. Nf3 {[%clk 0:03:00.2]}
2... Nc6 {[%clk 0:02:44.6]} 3. d4 {[%clk 0:03:00.4]} 3... exd4 {[%clk
0:02:44.2]} 4. Nxd4 {[%clk 0:03:01.3]} 4... Bc5 {[%clk 0:02:41.8]} 5. Nxc6
{[%clk 0:03:00.3]} 5... bxc6 {[%clk 0:02:41.1]} 6. Bd3 {[%clk 0:02:59.2]} 6...
d6 {[%clk 0:02:40.1]} 7. O-O {[%clk 0:02:58.5]} 7... Nf6 {[%clk 0:02:38.8]} 8.
h3 {[%clk 0:02:56.8]} 8... h5 {[%clk 0:02:38]} 9. Bg5 {[%clk 0:02:53.3]} 9...
Be6 {[%clk 0:02:33.5]} 10. c4 {[%clk 0:02:43.3]} 10... Qd7 {[%clk 0:02:30.9]}
11. Qf3 {[%clk 0:02:36.9]} 11... Nh7 {[%clk 0:02:17.6]} 12. Qxh5 {[%clk
0:02:24.7]} 12... Bd4 {[%clk 0:02:10.6]} 13. Bc1 {[%clk 0:02:16.3]} 13... g6
{[%clk 0:01:59.6]} 14. Qf3 {[%clk 0:02:11.3]} 14... Nf6 {[%clk 0:01:49.6]} 15.
Nd2 {[%clk 0:02:09]} 15... O-O-O {[%clk 0:01:34]} 16. Nb3 {[%clk 0:02:08.7]}
16... Be5 {[%clk 0:01:31.9]} 17. Bg5 {[%clk 0:01:41.4]} 17... Bxh3 {[%clk
0:01:00.5]} 18. Bxf6 {[%clk 0:01:36.4]} 18... Bg4 {[%clk 0:00:52.1]} 19. Qe3
{[%clk 0:01:20.9]} 19... Bh2+ {[%clk 0:00:49.1]} 20. Kh1 {[%clk 0:01:19.7]}
20... Bf4+ {[%clk 0:00:44.6]} 21. Kg1 {[%clk 0:01:19.8]} 21... Bxe3 {[%clk
0:00:38.3]} 22. fxe3 {[%clk 0:01:19.4]} 22... Qe6 {[%clk 0:00:20.2]} 23. c5
{[%clk 0:00:56.8]} 23... d5 {[%clk 0:00:19.7]} 24. Nd4 {[%clk 0:00:52.4]} 24...
Qd7 {[%clk 0:00:15.9]} 25. e5 {[%clk 0:00:42.8]} 25... Rh7 {[%clk 0:00:11.4]}
26. Rac1 {[%clk 0:00:25]} 26... Re8 {[%clk 0:00:06.6]} 27. Rc3 {[%clk
0:00:23.4]} 27... Kb8 {[%clk 0:00:03.7]} 28. Ra3 {[%clk 0:00:20]} 28... Ka8
{[%clk 0:00:02.3]} 29. Ra6 {[%clk 0:00:19]} 29... Rb8 {[%clk 0:00:01.6]} 30.
Nxc6 {[%clk 0:00:16.8]} 30... Rb7 {[%clk 0:00:02.3]} 31. b4 {[%clk 0:00:06.8]}
31... Bh3 {[%clk 0:00:01.8]} 32. Rf2 {[%clk 0:00:05]} 32... Bxg2 {[%clk
0:00:01.9]} 33. Rxg2 {[%clk 0:00:05.2]} 33... Qh3 {[%clk 0:00:02.5]} 34. b5
{[%clk 0:00:03.3]} 34... Qh1+ {[%clk 0:00:02.6]} 35. Kf2 {[%clk 0:00:03.4]}
35... Qc1 {[%clk 0:00:02]} 36. Nd8 {[%clk 0:00:01.4]} 36... Rb8 {[%clk
0:00:01.9]} 37. Kg3 {[%clk 0:00:01.2]} 37... Qb2 {[%clk 0:00:02.4]} 38. Rxb2
{[%clk 0:00:01]} 38... Rxb5 {[%clk 0:00:03.1]} 39. Rc2 {[%clk 0:00:01.5]} 39...
Rh3+ {[%clk 0:00:03.3]} 40. Kxh3 {[%clk 0:00:01.2]} 40... Rb1 {[%clk 0:00:03.7]}
41. Rd2 {[%clk 0:00:01.1]} 41... Rg1 {[%clk 0:00:03.3]} 42. c6 {[%clk
0:00:01.2]} 42... Rh1+ {[%clk 0:00:01.3]} 43. Kg2 {[%clk 0:00:01.3]} 43... Rc1
{[%clk 0:00:01.9]} 44. Kf2 {[%clk 0:00:01.5]} 44... Rc3 {[%clk 0:00:01.4]} 45.
Ke2 {[%clk 0:00:01.8]} 45... Rc1 {[%clk 0:00:02.1]} 46. Kf2 {[%clk 0:00:02]}
46... Ra1 {[%clk 0:00:02.6]} 47. Rb2 {[%clk 0:00:02.1]} 47... Rc1 {[%clk
0:00:03.3]} 48. Rxa7+ {[%clk 0:00:02.3]} 48... Kxa7 {[%clk 0:00:03.1]} 49. Rb7+
{[%clk 0:00:02.8]} 49... Ka8 {[%clk 0:00:03.6]} 50. Rxc7 {[%clk 0:00:03.1]}
50... Ra1 {[%clk 0:00:04.3]} 51. Rb7 {[%clk 0:00:02.9]} 51... Rxa2+ {[%clk
0:00:05.1]} 52. Kf3 {[%clk 0:00:02.7]} 52... Ra3 {[%clk 0:00:05.7]} 53. c7
{[%clk 0:00:02.4]} 53... Rc3 {[%clk 0:00:04]} 54. Rb8+ {[%clk 0:00:02.8]} 54...
Ka7 {[%clk 0:00:04]} 55. c8=Q {[%clk 0:00:03.7]} 55... Rxc8 {[%clk 0:00:03.3]}
56. Rxc8 {[%clk 0:00:04.3]} 1-0

[Event "Late-Titled-Tuesday-Blitz-June-04-2024"]
[Site "Chess.com"]
[Date "2024.06.04"]
[Round "5"]
[White "LUISMIGUELOV"]
[Black "howitzer14"]
[Result "0-1"]
[WhiteElo "2214"]
[BlackElo "3022"]
[TimeControl "180+1"]
[EndTime "14:56:11 PDT"]
[Termination "howitzer14 won on time"]

1. e4 {[%clk 0:03:00.9]} 1... c5 {[%clk 0:02:58.2]} 2. d4 {[%clk 0:02:59.4]}
2... cxd4 {[%clk 0:02:58.1]} 3. c3 {[%clk 0:02:59.9]} 3... Nf6 {[%clk
0:02:52.6]} 4. e5 {[%clk 0:02:59.6]} 4... Nd5 {[%clk 0:02:51.2]} 5. Qxd4 {[%clk
0:03:00]} 5... e6 {[%clk 0:02:50.5]} 6. Bd3 {[%clk 0:02:58]} 6... Nc6 {[%clk
0:02:51.4]} 7. Qe4 {[%clk 0:02:57.1]} 7... d6 {[%clk 0:02:30.7]} 8. Nf3 {[%clk
0:02:50.9]} 8... dxe5 {[%clk 0:02:14.6]} 9. Nxe5 {[%clk 0:02:49.6]} 9... Nxe5
{[%clk 0:02:08.9]} 10. Qxe5 {[%clk 0:02:48.7]} 10... Qc7 {[%clk 0:01:58.5]} 11.
Qxc7 {[%clk 0:02:31.8]} 11... Nxc7 {[%clk 0:01:59.4]} 12. Bf4 {[%clk 0:02:31.1]}
12... Nd5 {[%clk 0:01:58.9]} 13. Bg3 {[%clk 0:02:25.7]} 13... h5 {[%clk
0:01:57]} 14. h3 {[%clk 0:02:23.6]} 14... h4 {[%clk 0:01:56.9]} 15. Be5 {[%clk
0:02:22.1]} 15... f6 {[%clk 0:01:54.7]} 16. Bh2 {[%clk 0:02:16.2]} 16... e5
{[%clk 0:01:52]} 17. Bg6+ {[%clk 0:02:14.8]} 17... Kd7 {[%clk 0:01:44.7]} 18.
Nd2 {[%clk 0:02:14.2]} 18... Kc7 {[%clk 0:01:39.5]} 19. O-O-O {[%clk 0:02:12.7]}
19... Be6 {[%clk 0:01:39.6]} 20. Be4 {[%clk 0:02:02.7]} 20... Rd8 {[%clk
0:01:35.1]} 21. Nb3 {[%clk 0:01:59.8]} 21... Kc8 {[%clk 0:01:26.9]} 22. Rd2
{[%clk 0:01:55.7]} 22... Be7 {[%clk 0:01:16.5]} 23. Rhd1 {[%clk 0:01:53.7]}
23... Nc7 {[%clk 0:01:03.7]} 24. f4 {[%clk 0:01:46.5]} 24... f5 {[%clk 0:00:57]}
25. Bc2 {[%clk 0:01:33.6]} 25... Rxd2 {[%clk 0:00:43.1]} 26. Rxd2 {[%clk
0:01:32.4]} 26... g6 {[%clk 0:00:43.6]} 27. Kd1 {[%clk 0:01:27.1]} 27... e4
{[%clk 0:00:38.7]} 28. Bg1 {[%clk 0:01:22]} 28... Rd8 {[%clk 0:00:29.9]} 29.
Rxd8+ {[%clk 0:01:21]} 29... Kxd8 {[%clk 0:00:23.4]} 30. Bxa7 {[%clk 0:01:18.2]}
30... Nd5 {[%clk 0:00:23.8]} 31. Nd4 {[%clk 0:01:12.2]} 31... Bd7 {[%clk
0:00:23.7]} 32. Ne2 {[%clk 0:01:10.6]} 32... Bd6 {[%clk 0:00:22.6]} 33. Bf2
{[%clk 0:01:06.9]} 33... Nxf4 {[%clk 0:00:14.6]} 34. Nxf4 {[%clk 0:01:06.6]}
34... Bxf4 {[%clk 0:00:15.5]} 35. Bxh4+ {[%clk 0:01:06.5]} 35... g5 {[%clk
0:00:16.2]} 36. Bf2 {[%clk 0:00:58.2]} 36... Bd6 {[%clk 0:00:12.9]} 37. c4
{[%clk 0:00:56.6]} 37... Bc6 {[%clk 0:00:12.8]} 38. g3 {[%clk 0:00:52.4]} 38...
f4 {[%clk 0:00:12]} 39. gxf4 {[%clk 0:00:51.5]} 39... gxf4 {[%clk 0:00:12.9]}
40. h4 {[%clk 0:00:49.8]} 40... e3 {[%clk 0:00:11.7]} 41. Bxe3 {[%clk
0:00:42.7]} 41... fxe3 {[%clk 0:00:12.6]} 42. Ke2 {[%clk 0:00:42.7]} 42... Bf4
{[%clk 0:00:11.4]} 43. b4 {[%clk 0:00:39.2]} 43... Kc7 {[%clk 0:00:10.5]} 44. a4
{[%clk 0:00:37.4]} 44... b6 {[%clk 0:00:10.4]} 45. a5 {[%clk 0:00:33.6]} 45...
bxa5 {[%clk 0:00:10.6]} 46. bxa5 {[%clk 0:00:32.5]} 46... Kb7 {[%clk 0:00:10.6]}
47. c5 {[%clk 0:00:17.4]} 47... Ka6 {[%clk 0:00:10.7]} 48. Bd3+ {[%clk
0:00:17.8]} 48... Kxa5 {[%clk 0:00:10.8]} 49. h5 {[%clk 0:00:18.1]} 49... Kb4
{[%clk 0:00:11.1]} 50. Bf5 {[%clk 0:00:10]} 50... Kxc5 {[%clk 0:00:10.3]} 51.
Bg4 {[%clk 0:00:10.5]} 51... Kd4 {[%clk 0:00:08.7]} 52. Bf3 {[%clk 0:00:10.8]}
52... Bb5+ {[%clk 0:00:08.3]} 53. Ke1 {[%clk 0:00:10.3]} 53... Bh6 {[%clk
0:00:08.8]} 54. Kd1 {[%clk 0:00:08.5]} 54... Bd3 {[%clk 0:00:09.3]} 55. Ke1
{[%clk 0:00:07]} 55... Ke5 {[%clk 0:00:09.9]} 56. Kd1 {[%clk 0:00:06]} 56... Kf4
{[%clk 0:00:10.4]} 57. Be2 {[%clk 0:00:04.6]} 57... Bxe2+ {[%clk 0:00:08.7]} 58.
Kxe2 {[%clk 0:00:04.8]} 58... Ke4 {[%clk 0:00:09.6]} 59. Ke1 {[%clk 0:00:04.1]}
59... Kf3 {[%clk 0:00:09.4]} 60. Kf1 {[%clk 0:00:04.1]} 60... Bg5 {[%clk
0:00:09.9]} 61. Ke1 {[%clk 0:00:01.6]} 61... e2 {[%clk 0:00:07.2]} 0-1

[Event "Late-Titled-Tuesday-Blitz-June-04-2024"]
[Site "Chess.com"]
[Date "2024.06.04"]
[Round "5"]
[White "TheoSlade"]
[Black "Zura_19"]
[Result "1/2-1/2"]
[WhiteElo "2459"]
[BlackElo "2612"]
[TimeControl "180+1"]
[EndTime "14:56:12 PDT"]
[Termination "Game drawn - insufficient material"]

1. d4 {[%clk 0:03:00.9]} 1... Nf6 {[%clk 0:02:59.5]} 2. c4 {[%clk 0:03:00.5]}
2... e6 {[%clk 0:02:58.6]} 3. g3 {[%clk 0:03:00.9]} 3... Bb4+ {[%clk 0:02:57.1]}
4. Nd2 {[%clk 0:03:00.4]} 4... c5 {[%clk 0:02:56.5]} 5. a3 {[%clk 0:02:59.4]}
5... Bxd2+ {[%clk 0:02:52]} 6. Qxd2 {[%clk 0:03:00.3]} 6... cxd4 {[%clk
0:02:50.6]} 7. Nf3 {[%clk 0:03:00.7]} 7... d5 {[%clk 0:02:36.5]} 8. cxd5 {[%clk
0:02:50.9]} 8... exd5 {[%clk 0:02:31.5]} 9. Nxd4 {[%clk 0:02:45.1]} 9... Ne4
{[%clk 0:02:24.4]} 10. Qd1 {[%clk 0:02:44.1]} 10... Qf6 {[%clk 0:02:16.9]} 11.
Be3 {[%clk 0:02:42.5]} 11... O-O {[%clk 0:02:12.2]} 12. Bg2 {[%clk 0:02:42.3]}
12... Nc6 {[%clk 0:02:10.4]} 13. O-O {[%clk 0:02:42.3]} 13... Re8 {[%clk
0:02:08]} 14. Rc1 {[%clk 0:02:38.2]} 14... Bd7 {[%clk 0:01:59.3]} 15. Nxc6
{[%clk 0:02:14.4]} 15... bxc6 {[%clk 0:01:53]} 16. Bd4 {[%clk 0:02:11.2]} 16...
Qh6 {[%clk 0:01:52]} 17. Qd3 {[%clk 0:01:58.3]} 17... a5 {[%clk 0:01:34.2]} 18.
f3 {[%clk 0:01:41.5]} 18... Ng5 {[%clk 0:01:26.5]} 19. Rc5 {[%clk 0:01:31.7]}
19... Ne6 {[%clk 0:01:13.6]} 20. Rc2 {[%clk 0:01:28.3]} 20... Rac8 {[%clk
0:00:51.8]} 21. Rfc1 {[%clk 0:01:27.8]} 21... c5 {[%clk 0:00:49.1]} 22. Bxc5
{[%clk 0:01:16.1]} 22... Nxc5 {[%clk 0:00:38]} 23. Rxc5 {[%clk 0:01:17]} 23...
Qxc1+ {[%clk 0:00:31.8]} 24. Rxc1 {[%clk 0:01:16]} 24... Rxc1+ {[%clk
0:00:32.7]} 25. Kf2 {[%clk 0:01:16.3]} 25... Be6 {[%clk 0:00:30.3]} 26. f4
{[%clk 0:01:10.9]} 26... Bg4 {[%clk 0:00:27.1]} 27. Bf3 {[%clk 0:01:07.5]} 27...
Bxf3 {[%clk 0:00:24.6]} 28. Qxf3 {[%clk 0:01:07]} 28... Rc2 {[%clk 0:00:23.2]}
29. Qxd5 {[%clk 0:01:05.9]} 29... Rxb2 {[%clk 0:00:19.8]} 30. Qxa5 {[%clk
0:01:02.8]} 30... Rbxe2+ {[%clk 0:00:19.4]} 31. Kf3 {[%clk 0:01:00.7]} 31... g6
{[%clk 0:00:17.2]} 32. h4 {[%clk 0:00:34.5]} 32... h5 {[%clk 0:00:16.9]} 33. Qa7
{[%clk 0:00:30.4]} 33... Ra2 {[%clk 0:00:15.9]} 34. f5 {[%clk 0:00:26.5]} 34...
gxf5 {[%clk 0:00:11.1]} 35. Kf4 {[%clk 0:00:25.5]} 35... Re4+ {[%clk 0:00:06.6]}
36. Kxf5 {[%clk 0:00:24.3]} 36... Rg4 {[%clk 0:00:07.3]} 37. Qa8+ {[%clk
0:00:19]} 37... Kh7 {[%clk 0:00:06.7]} 38. Kf6 {[%clk 0:00:10.7]} 38... Rf2+
{[%clk 0:00:06]} 39. Ke7 {[%clk 0:00:11]} 39... Rxg3 {[%clk 0:00:04.3]} 40. Qe4+
{[%clk 0:00:11.3]} 40... Rg6 {[%clk 0:00:04.5]} 41. a4 {[%clk 0:00:05.6]} 41...
Rf6 {[%clk 0:00:04.3]} 42. Qb1 {[%clk 0:00:03.5]} 42... Rf4 {[%clk 0:00:03.6]}
43. a5 {[%clk 0:00:02.8]} 43... Kg7 {[%clk 0:00:01.9]} 44. a6 {[%clk 0:00:02.6]}
44... Rxa6 {[%clk 0:00:01.8]} 45. Qb2+ {[%clk 0:00:02.6]} 45... Raf6 {[%clk
0:00:01.7]} 46. Qd2 {[%clk 0:00:03]} 46... Kh7 {[%clk 0:00:01.8]} 47. Kd7 {[%clk
0:00:02.7]} 47... R4f5 {[%clk 0:00:02.3]} 48. Kc7 {[%clk 0:00:03.1]} 48... Rg6
{[%clk 0:00:02.8]} 49. Qd3 {[%clk 0:00:03.3]} 49... Rff6 {[%clk 0:00:03.1]} 50.
Kd7 {[%clk 0:00:03.5]} 50... Kg7 {[%clk 0:00:04]} 51. Ke7 {[%clk 0:00:04]} 51...
Rf4 {[%clk 0:00:04.3]} 52. Qc3+ {[%clk 0:00:04.3]} 52... Kh7 {[%clk 0:00:04.8]}
53. Qc2 {[%clk 0:00:04.5]} 53... Rxh4 {[%clk 0:00:04.9]} 54. Kxf7 {[%clk
0:00:03.6]} 54... Rf4+ {[%clk 0:00:05.6]} 55. Ke7 {[%clk 0:00:03]} 55... h4
{[%clk 0:00:05.5]} 56. Kd7 {[%clk 0:00:02.6]} 56... Rf6 {[%clk 0:00:05.6]} 57.
Ke7 {[%clk 0:00:02.9]} 57... Kg7 {[%clk 0:00:06]} 58. Qd3 {[%clk 0:00:02.9]}
58... Rf7+ {[%clk 0:00:06.5]} 59. Ke8 {[%clk 0:00:02.8]} 59... Rf8+ {[%clk
0:00:06.8]} 60. Ke7 {[%clk 0:00:02.6]} 60... Rff6 {[%clk 0:00:07.1]} 61. Qd4
{[%clk 0:00:02.2]} 61... Kh6 {[%clk 0:00:07.2]} 62. Qxh4+ {[%clk 0:00:02.2]}
62... Kg7 {[%clk 0:00:07.8]} 63. Qd4 {[%clk 0:00:02.2]} 63... Rh6 {[%clk
0:00:07.4]} 64. Qe5 {[%clk 0:00:02.3]} 64... Rg6 {[%clk 0:00:08]} 65. Qd4 {[%clk
0:00:02.9]} 65... Rh6 {[%clk 0:00:07.3]} 66. Qe5 {[%clk 0:00:03.4]} 66... Kh7
{[%clk 0:00:07.3]} 67. Qxf6 {[%clk 0:00:02.9]} 67... Rxf6 {[%clk 0:00:07.9]} 68.
Kxf6 {[%clk 0:00:03.5]} 1/2-1/2